Cogmind - Beta 9.1 @@@ ROGUE MODE // 2019.11.11 @ 14:30:10 Player: Demise Result: Self-destructed Performance ------------- Evolutions (1) 500 Regions Visited (3) 600 Robots Destroyed (31) 155 Value Destroyed (639) 639 Prototype IDs (0) 0 Alien Tech Used (0) 0 Bonus (121) 121 TOTAL SCORE: 2015 Bonus ------- Follower Combat Kills 121 Cogmind --------- Core Integrity 279/400 Matter 294/300 Energy 100/100 System Corruption 0% Temperature Cool (0) Location -9/Materials Parts ------- Power (1) Propulsion (2) Armored Wheel Armored Wheel Utility (4) Cryofiber Web Large Storage Unit Seismic Analyzer Insulated Plating Weapon (2) Beam Rifle Inventory (10) Improved Aluminum Leg Armored Wheel Armored Wheel Cesium-ion Thruster Advanced Sensor Array Improved Signal Interpreter Improved Terrain Scanner Seismic Analyzer Hacking Suite Mining Laser Peak State ------------ Power (None) Propulsion Armored Wheel Armored Wheel Utility Cryofiber Web Large Storage Unit Seismic Analyzer Insulated Plating Weapon Beam Rifle Light Assault Rifle Inventory Improved Aluminum Leg Armored Wheel Armored Wheel Cesium-ion Thruster Advanced Sensor Array Improved Terrain Scanner Seismic Analyzer Hacking Suite Grenade Launcher Mining Laser [Rating: 17] Favorites ----------- Power Light Deuterium Engine Engine Light Deuterium Engine Propulsion Aluminum Leg Treads Armored Treads Leg Aluminum Leg Wheel Armored Wheel Utility Seismic Analyzer Device Improved Terrain Scanner Storage Large Storage Unit Processor Seismic Analyzer Protection Insulated Plating Weapon Light Assault Rifle Energy Gun Small Laser Ballistic Gun Light Assault Rifle Ballistic Cannon Light Cannon Launcher Grenade Launcher Special Weapon Mining Laser Build | -11 -10 -10 -9 ------- Run | Scr Mat Min Mat Slots Evolved 2 | . . . 2 Power . | . . . . Propulsion . | . . . . Utility 2 | . . . 2 Weapon . | . . . . Parts Attached 42 | 4 16 14 8 Power 4 | . 3 1 . Engine 4 | . 3 1 . Core . | . . . . Reactor . | . . . . Propulsion 11 | . 5 3 3 Treads 1 | . . 1 . Leg 8 | . 5 2 1 Wheel 2 | . . . 2 Hover . | . . . . Flight . | . . . . Utility 8 | 4 1 1 2 Device 4 | 2 1 . 1 Storage 1 | . . 1 . Processor 2 | 2 . . . Hackware . | . . . . Protection 1 | . . . 1 Artifact . | . . . . Weapon 19 | . 7 9 3 Energy Gun 11 | . 4 5 2 Energy Cannon . | . . . . Ballistic Gun 3 | . 2 1 . Ballistic Cannon 2 | . . 2 . Launcher 1 | . . . 1 Special Weapon 2 | . 1 1 . Impact Weapon . | . . . . Slashing Weapon . | . . . . Piercing Weapon . | . . . . Special Melee Weapon . | . . . . Unidentified Prototypes . | . . . . Parts Lost 10 | . 4 3 3 Power 2 | . 1 . 1 Propulsion . | . . . . Utility . | . . . . Weapon 8 | . 3 3 2 Highest Loss Streak 2 | . 2 2 1 Average Slot Usage (%) 96 | . 96 99 82 Engine 11 | . 13 14 2 Treads 9 | . . 13 5 Leg 15 | . 28 14 5 Wheel 1 | . . . 10 Device 3 | . 12 . 8 Storage 10 | . . 13 11 Processor 13 | . 14 14 11 Protection 1 | . . . 8 Energy Gun 10 | . 12 12 5 Ballistic Gun 10 | . 15 9 8 Ballistic Cannon 4 | . . 5 5 Naked Turns . | . . . . Heaviest Build 25 | 9 8 25 25 Greatest Support 24 | 20 20 20 24 Greatest Overweight (x) 2 | . . 2 1 Average Overweight (x) . | . . 1 . Largest Inventory Capacity 10 | 6 4 10 10 Average Capacity 8 | 4 4 9 10 Most Carried 10 | 6 4 10 10 Average Carried 8 | 4 3 9 9 Final Capacity 10 | 4 4 10 10 Final Carried 10 | 4 4 10 10 Class Distribution -------------------- 88% | Mutant 11% | Scavenger-Mutant Dominant Class ---------------- Scavenger-Mutant | -10/Materials Mutant | -10/Mines Mutant | -9/Materials Resources | -11 -10 -10 -9 ----------- Run | Scr Mat Min Mat Matter Collected 727 | 271 181 131 144 Remotely . | . . . . Salvage Created 962 | 227 274 286 175 Parts 67 | 20 24 11 12 Haulers Intercepted 1 | . . . 1 Recyclers Shooed 1 | . . . 1 Parts Field Recycled . | . . . . Retrieved Matter . | . . . . Parts Self-Destructed . | . . . . Prevented . | . . . . Kills | -11 -10 -10 -9 ------- Run | Scr Mat Min Mat Combat Hostiles Destroyed 22 | . 9 7 6 Guns 18 | . 9 6 3 Cannons 3 | . . 1 2 AOE 1 | . . . 1 Classes Destroyed 8 | 3 2 1 2 Worker 2 | 2 . . . Tunneler 5 | 5 . . . Hauler 1 | . . . 1 Recycler 1 | 1 . . . Swarmer 7 | . 3 . 4 Grunt 12 | . 6 6 . Sentry 2 | . . . 2 Assembled 1 | . . 1 . Best Kill Streak 6 | 6 3 3 3 Combat Bots Only 3 | . 3 3 3 Max Kills in Single Turn 2 | 1 1 1 2 Gunslinging 1 | . . . 1 Exploded 1 | . . . 1 Melee . | . . . . Uniques/NPCs Destroyed . | . . . . Combat | -11 -10 -10 -9 -------- Run | Scr Mat Min Mat Damage Taken 1877 | . 799 520 558 Core 348 | . 151 76 121 Absorbed by Shields . | . . . . Core Remaining (%) 54 | 100 . 9 . Volleys Fired 123 | 31 43 24 25 Largest 2 | 2 2 2 2 Hottest 103 | 60 70 103 76 Shots Fired 223 | 59 82 41 41 Gun 208 | 59 82 37 30 Cannon 11 | . . 2 9 Launcher 2 | . . . 2 Special 2 | . . 2 . Kinetic 108 | 31 47 5 25 Thermal 113 | 28 35 36 14 Explosive 2 | . . . 2 Electromagnetic . | . . . . Robot Hit Streak 13 | 10 12 10 13 Robot Miss Streak 3 | 3 3 2 2 Penetration Max . | . . . . Secondary Targets 2 | . . 1 1 Max Gunslinging Chain 1 | . . 1 1 Shots Hit Robots 136 | 34 45 29 28 Core Hits 54 | 13 16 13 12 Critical Hits . | . . . . Critical Kills . | . . . . Critical Parts Destroyed . | . . . . Melee Attacks . | . . . . Impact . | . . . . Slashing . | . . . . Piercing . | . . . . Sneak Attacks . | . . . . Combat Hostiles . | . . . . Follow-up Attacks . | . . . . Damage Inflicted 1533 | 321 407 424 381 Guns 1332 | 321 407 402 202 Cannons 141 | . . 19 122 Explosions 23 | . . . 23 Melee . | . . . . Ramming 37 | . . 3 34 Kinetic 567 | 133 185 27 222 Thermal 906 | 188 222 394 102 Explosive 23 | . . . 23 Electromagnetic . | . . . . Impact . | . . . . Slashing . | . . . . Piercing . | . . . . Highest Corruption . | . . . . Average Corruption . | . . . . Corruption Purged . | . . . . Overload Shots . | . . . . Overflow Damage 10 | . . . 10 Projectiles . | . . . . Explosions 10 | . . . 10 Melee . | . . . . Knockbacks . | . . . . Impact . | . . . . Kinetic . | . . . . Secondary . | . . . . Self-Inflicted Damage 38 | . . . 38 Shots 1 | . . . 1 Rammed 4 | . . 2 2 Targets Rammed 4 | . . 2 2 Kicked . | . . . . Crushed . | . . . . Highest Temperature 328 | 60 134 328 36 Average Temperature 72 | 29 48 132 13 Received Heat Transfer 696 | . 351 228 117 Effects 1 | . . 1 . Interference 1 | . . 1 . Siege Activations . | . . . . Robots Corrupted . | . . . . Combat Hostiles . | . . . . Parts Fried . | . . . . Impact Corruptions . | . . . . Robots Melted . | . . . . Combat Hostiles . | . . . . Parts Melted 3 | . 1 2 . Heat Transferred 2098 | 425 547 867 259 Parts Sabotaged . | . . . . Parts Stolen . | . . . . Parts Stripped . | . . . . Power Chain Reactions . | . . . . Missiles Intercepted . | . . . . Alert | -11 -10 -10 -9 ------- Run | Scr Mat Min Mat Peak Influence 300 | 40 300 190 225 Average Influence 90 | 19 159 74 99 Maximum Alert Level 1 | . 1 . 1 Low Security (%) 90 | . . . . Level 1 9 | . . . . Level 2 . | . . . . Level 3 . | . . . . Level 4 . | . . . . Level 5 . | . . . . High Security . | . . . . Max Security . | . . . . Squads Dispatched 5 | . 3 1 1 Investigation 5 | . 3 1 1 Extermination . | . . . . Reinforcement . | . . . . Assault . | . . . . Garrison . | . . . . Intercept . | . . . . Construction Impeded . | . . . . Haulers Reinforced . | . . . . Stealth | -11 -10 -10 -9 --------- Run | Scr Mat Min Mat Distress Signals 1 | . 1 . . Communications Jammed . | . . . . Distress Signals . | . . . . Times Spotted 49 | . 18 16 15 Peak Tracking Total 7 | . 7 3 7 Tactical Retreats 4 | . . 3 1 Traps | -11 -10 -10 -9 ------- Run | Scr Mat Min Mat Traps Triggered 1 | . . . 1 Indirectly . | . . . . Trap Hack Attempts . | . . . . Triggered . | . . . . Disarmed . | . . . . Reprogrammed . | . . . . Reused . | . . . . Traps Extracted . | . . . . Installed . | . . . . Triggered . | . . . . Machines | -11 -10 -10 -9 ---------- Run | Scr Mat Min Mat Machines Disabled . | . . . . Max in Single Turn . | . . . . Machines Sabotaged . | . . . . Garrisons Compromised . | . . . . Overloaded Fab Kills . | . . . . Fab Network Shutdowns . | . . . . Hacking | -11 -10 -10 -9 --------- Run | Scr Mat Min Mat Machines Accessed 10 | . 7 1 2 Terminals 7 | . 6 . 1 Fabricators . | . . . . Repair Stations 1 | . 1 . . Recycling Units . | . . . . Scanalyzers 1 | . . . 1 Garrison Access . | . . . . Total Hacks 30 | . 24 1 5 Successful 20 | . 15 1 4 Failed 10 | . 9 . 1 Catastrophic 2 | . 2 . . Database Lockouts . | . . . . Manual 22 | . 18 1 3 Terminals 24 | . 21 . 3 Fabricators . | . . . . Repair Stations 3 | . 3 . . Recycling Units . | . . . . Scanalyzers 2 | . . . 2 Garrison Access . | . . . . Terminal Hacks 9 | . 7 1 1 Record 1 | . 1 . . Part Schematic 3 | . 3 . . Open Door 1 | . . 1 . Branch Access Points 2 | . 1 . 1 Hauler Manifests 1 | . 1 . . Zone Layout 1 | . 1 . . Fabricator Hacks . | . . . . Repair Station Hacks 2 | . 2 . . Scan Component 1 | . 1 . . Repair 1 | . 1 . . Recycling Unit Hacks . | . . . . Scanalyzer 2 | . . . 2 Insert Component 1 | . . . 1 Analyze 1 | . . . 1 Garrison Access Hacks . | . . . . Unauthorized Hacks 17 | . 15 . 2 Terminals 7 | . 6 . 1 Botnet 7 | . 6 . 1 Fabricators . | . . . . Repair Stations . | . . . . Recycling Units . | . . . . Scanalyzers . | . . . . Garrison Access . | . . . . Data Cores Recovered . | . . . . Used . | . . . . Hacking Detections 8 | . 7 . 1 Full Trace Events 3 | . 3 . . Feedback Events . | . . . . Feedback Blocked . | . . . . Robot Schematics Acquired . | . . . . Robots Built . | . . . . Matter . | . . . . Time . | . . . . Total Robot Build Rating . | . . . . Part Schematics Acquired 4 | . 3 . 1 Parts Built . | . . . . Matter . | . . . . Time . | . . . . Total Part Build Rating . | . . . . Parts Repaired 1 | . 1 . . Time 32 | . 32 . . Parts Recycled . | . . . . Recycled Matter . | . . . . Retrieved Matter . | . . . . Retrieved Components . | . . . . Parts Scanalyzed 1 | . . . 1 Part Schematics Acquired 1 | . . . 1 Parts Damaged . | . . . . Bothacking | -11 -10 -10 -9 ------------ Run | Scr Mat Min Mat Used RIF Installer . | . . . . Robots Hacked . | . . . . Non-combat . | . . . . Combat . | . . . . Robot Hacks Applied . | . . . . Relay Couplers Released . | . . . . Robots Rewired . | . . . . Allies Hacked . | . . . . Hacks Repelled . | . . . . Allies | -11 -10 -10 -9 -------- Run | Scr Mat Min Mat Total Allies 1 | . . 1 . Largest Group 1 | . . 1 . Highest-Rated Group 31 | . . 31 . Highest-Rated Ally 31 | . . 31 . Total Orders . | . . . . Ally Attacks 21 | . . 21 . Total Damage 333 | . . 333 . Kills 7 | . . 7 . Allies Corrupted . | . . . . Allies Melted . | . . . . Intel | -11 -10 -10 -9 ------- Run | Scr Mat Min Mat Robot Analysis Total . | . . . . Derelict Logs Recovered 2 | . . 2 . Drone Launches . | . . . . Drone Recoveries . | . . . . Exploration | -11 -10 -10 -9 ------------- Run | Scr Mat Min Mat Turns Passed 2341 | 140 420 1417 364 Spaces Moved 1140 | 37 207 686 210 Core . | . . . . Treads 640 | . . 558 82 Legs 372 | 37 207 128 . Wheels 128 | . . . 128 Hover . | . . . . Flight . | . . . . Fastest Speed 90 | 120 120 120 90 Average Speed 162 | 120 120 187 128 Slowest Speed 190 | 120 120 190 190 Overloaded Moves . | . . . . Propulsion Burnouts . | . . . . Robots Hopped . | . . . . Cave-ins Triggered . | . . . . Exploration Rate (%) 41 | 4 41 96 25 Regions Visited 3 Branch Regions 1 Pre-discovered Areas . | . . . . Known Exits Taken 1 | . 1 . . Unknown Exits Taken 2 | 1 . 1 . Scrap Searched 1 | . . 1 . Spaces Dug 2 | . . 2 . Terrain Destroyed 15 | . . 2 13 Melee . | . . . . Projectile 2 | . . 2 . AOE 13 | . . . 13 Actions | -11 -10 -10 -9 --------- Run | Scr Mat Min Mat Total 1436 | 80 312 778 266 Wait 69 | . 31 28 10 Move 1137 | 36 206 685 210 Hop . | . . . . Pick Up 24 | 3 4 12 5 Fast Attach 11 | 1 2 5 3 Attach 9 | . 3 3 3 Detach 2 | . . 2 . Swap 22 | 3 11 6 2 Drop 35 | 6 12 11 6 Fire 123 | 31 43 24 25 Melee . | . . . . Ram 2 | . . . 2 Kick 1 | . . 1 . Crush 1 | . . 1 . Escape Stasis . | . . . . Rewire . | . . . . Trap . | . . . . Miscellaneous . | . . . . Route ------- -11/Scrapyard -10/Materials (discovered 2 exits: *Mat / *Min) -10/Mines (discovered 2 exits: *Mat x2) -9/Materials (discovered 4 exits: Mat x2 / Min / Sto) History --------- Turn | Location | Event 33 | -11/Scrapyard | Discovered new exit (range 3) 141 | -11/Scrapyard | Entered Materials 269 | -10/Materials | Discovered new exit (range 11) 271 | -10/Materials | Identified exit to Mines 324 | -10/Materials | Repaired Imp. Terrain Scanner? 554 | -10/Materials | Core integrity fell below 50% 561 | -10/Materials | Entered Mines 566 | -10/Mines | Met a Derelict shopkeep closing up shop 770 | -10/Mines | Discovered new exit (range 5) 805 | -10/Mines | Escorted by a lone wolf Derelict 861 | -10/Mines | Build established: Mutant 946 | -10/Mines | Excavation squad dispatched 946 | -10/Mines | A large section of the Mines collapsed 1008 | -10/Mines | Core integrity fell below 20% 1137 | -10/Mines | Discovered new exit (range 13) 1623 | -10/Mines | Learned 2 Materials zone layouts 1667 | -10/Mines | Learned location of 1 exit from Materials 1978 | -10/Mines | Entered Materials 1978 | -9/Materials | Evolved 2 slots: Utility x2 1979 | -9/Materials | Identified exit to Materials 1996 | -9/Materials | Identified exit to Mines 1996 | -9/Materials | Identified exit to Storage 2342 | -9/Materials | Self-destructed Last Messages --------------- 02258_ K-01 Serf collects debris. 02259_ U-05 Engineer lays Concrete. 02260_ R-06 Scavenger collects Flight Unit. 02261_ U-05 Engineer lays Concrete. 02284_ K-01 Serf collects debris. 02288_ Slammed into W-16 Scout. 02288_ Destabilizing: System interference. 02288_ Cryofiber Web temporarily disabled. 02288_ Beam Rifle temporarily disabled. 02288_ Cryofiber Web temporarily disabled. 02321_ A-02 Transporter destroyed. 02323_ K-01 Serf collects debris. 02324_ Acquired Imp. Signal Interpreter. 02325_ Acquired 51 matter. 02327_ K-01 Serf collects debris. 02330_ R-06 Scavenger collects VTOL Module. 02332_ Slammed into R-06 Scavenger. 02337_ Triggered Alarm Trap. 02337_ An alarm sounds. 02337_ ALERT: Alarm triggered, dispatching investigation squad. Map ----- +----------------------------------------------------+ | ?????????????????????????????????????????????????? | | ?????????????????????????????????????????????????? | | ????????????????????????????????????????????????## | | ??????????????????????????????????????###???????# | | ????????????????????????????????????# ??????# | | ????????????????????????????????????# ####### | | ????????????????????????????????????# + | | ????????????????????????????????????# ####### | | ?????????????????????????????######?? ??????# | | ?????????????????????????????? #??# #??????# | | ?????????????????????????????? #??# #??????# | | ?????????????????????????????? #??# #??????# | | ??????????????????????????????# #??# +?? ## | | ??????????????????????????????# #??# #?? #? | | ??????????????????????????????# #??# #?? #? | | ??????????????????????????????# #### #??###+#? | | ??????????????????????????????# ###### #? | |